bitfinex/quotes_ETHUSD_20260219
["timestamp","ask_amount","ask_price","bid_price","bid_amount"]
[1771542459487,1.35521338,1944.7,1944.3,1.0592156]
[1771542459656,1.35521338,1944.7,1944.3,0.926]
[1771542460281,1.35521338,1944.9,1944.4,0.13335626]
[1771542460489,1.35521338,1945.0,1944.5,0.13335626]
[1771542460700,1.35521338,1944.9,1944.2,0.13335626]
[1771542461658,1.35521338,1944.7,1944.2,0.13335626]
[1771542462062,1.35521338,1945.1,1944.3,1.36461325]
[1771542463656,1.35521338,1945.0,1944.6,1.36561325]
[1771542463961,0.0011,1944.9,1944.6,1.36561325]
[1771542465806,1.35631338,1944.9,1944.6,1.36561325]
[1771542468172,1.35631338,1944.9,1944.6,2.6512246]
[1771542468370,0.0011,1945.0,1944.7,1.36461325]
[1771542468779,1.35631338,1945.0,1944.7,1.36461325]
[1771542471103,1.35631338,1945.0,1944.7,2.65015857]
[1771542471396,1.35631338,1945.0,1944.7,1.36461325]
[1771542474003,0.0011,1945.0,1944.7,1.36461325]
[1771542475517,1.35631338,1945.0,1944.7,1.36461325]
[1771542476880,1.35631338,1945.0,1944.6,1.36561325]
[1771542477082,1.35631338,1945.0,1944.6,0.001]
[1771542477278,1.35631338,1945.0,1944.6,1.36561325]
[1771542477515,1.35521338,1944.8,1944.6,0.001]
[1771542478908,1.35521338,1944.8,1944.7,0.001]
[1771542482591,0.0011,1944.9,1944.7,0.001]
[1771542482791,1.31207991,1944.9,1944.7,0.001]
[1771542484514,1.31207991,1944.9,1944.7,1.28921363]
[1771542484515,0.0011,1944.9,1944.7,1.28921363]
[1771542487407,0.0011,1944.9,1944.8,1.36270051]
[1771542487919,1.41531049,1945.2,1944.9,1.36270051]
[1771542490810,2.70052566,1945.2,1944.9,1.36270051]
[1771542491013,1.41531049,1945.2,1944.9,1.36270051]
[1771542491511,0.0011,1945.0,1944.9,1.36270051]
[1771542492831,0.0011,1945.0,1944.8,0.001]
[1771542493332,0.0011,1945.0,1944.8,1.36370051]
[1771542496931,0.0011,1945.0,1944.8,0.001]
[1771542497109,1.41531049,1945.0,1944.8,0.001]
[1771542498731,2.69962362,1944.9,1944.8,0.001]
[1771542503033,2.70072362,1944.9,1944.8,0.001]
[1771542506319,0.0011,1944.9,1944.8,0.001]
[1771542508240,0.0011,1945.0,1944.8,1.36370051]
[1771542509453,0.0011,1945.0,1944.9,1.36270051]
[1771542510632,0.0011,1945.0,1944.8,1.28647756]
[1771542510835,0.0011,1945.0,1944.8,2.64917807]
[1771542511445,0.0011,1945.0,1944.9,1.36270051]
[1771542515346,0.0011,1945.0,1944.9,1.36370051]
[1771542524074,1.39140322,1945.7,1945.0,1.28892981]
[1771542524392,1.39030322,1945.6,1945.0,1.28892981]
[1771542525245,1.39140322,1945.7,1945.1,1.28528096]
[1771542525454,1.39140322,1945.7,1945.2,1.28892981]
[1771542528239,1.39140322,1945.7,1945.3,1.28892981]
[1771542528566,0.0011,1945.5,1945.3,1.28892981]
[1771542530259,1.39140322,1945.5,1945.2,1.2851658]
[1771542530655,1.39140322,1945.5,1945.2,2.57409561]
[1771542531463,0.0011,1945.5,1945.3,1.28892981]
[1771542533273,0.0011,1945.5,1945.3,2.57403747]
[1771542533476,0.0011,1945.7,1945.5,1.28892981]
[1771542534077,0.0011,1945.7,1945.3,2.57403747]
[1771542534642,0.0011,1945.7,1945.4,1.28892981]
[1771542535548,1.39140322,1945.7,1945.4,1.28892981]
[1771542536692,1.39140322,1945.7,1945.4,2.57401035]
[1771542537458,0.0011,1945.7,1945.5,1.28892981]
[1771542540383,1.39140322,1945.7,1945.4,1.28508054]
[1771542540883,0.0011,1945.6,1945.4,1.28508054]
[1771542541193,0.0011,1945.6,1945.4,2.57401035]
[1771542543196,0.0011,1945.6,1945.4,1.28892981]
[1771542544693,1.33047031,1945.6,1945.3,0.001]
[1771542546407,1.32937031,1945.4,1945.3,0.001]
[1771542549377,5.14100841,1945.6,1945.3,0.001]
[1771542549578,1.39308531,1945.5,1945.3,0.001]
[1771542550409,1.39418531,1945.6,1945.3,0.001]
[1771542551207,0.0011,1945.6,1945.3,1.33766903]
[1771542551588,0.0011,1945.6,1945.4,1.33666903]
[1771542554682,0.0011,1945.6,1945.4,1.33766903]
[1771542554880,0.0011,1945.5,1945.4,1.33766903]
[1771542555824,0.0011,1945.5,1945.4,2.62275178]
[1771542561826,0.0011,1945.8,1945.5,1.33666903]
[1771542562392,0.0011,1945.8,1945.6,1.28495065]
[1771542562592,0.0011,1945.8,1945.7,1.33666903]
[1771542564547,0.0011,1946.2,1945.8,1.33666903]
[1771542564836,1.39418531,1946.4,1945.9,1.33666903]
[1771542567451,1.39418531,1946.4,1946.1,1.33666903]
[1771542568952,0.0011,1946.3,1946.1,1.33666903]
[1771542569162,1.34168091,1946.7,1946.2,1.33666903]
[1771542569755,0.0011,1946.7,1946.4,1.33666903]
[1771542571724,0.0011,1946.7,1946.6,1.33666903]
[1771542573792,1.34467093,1946.7,1946.1,6.6714345]
[1771542574070,1.34467093,1946.7,1946.2,1.33666903]
[1771542577096,1.34467093,1946.7,1946.2,1.28450708]
[1771542577285,1.34467093,1946.7,1946.3,1.30435633]
[1771542580074,1.31781332,1946.6,1946.3,1.30435633]
[1771542580237,1.31781332,1946.6,1945.9,2.58904286]
[1771542580435,1.31781332,1946.6,1946.0,1.30435633]
[1771542581165,1.31781332,1946.6,1946.4,0.001]
[1771542581662,1.31891332,1946.6,1946.4,0.001]
[1771542582066,2.60216985,1946.5,1946.4,0.001]
[1771542583249,1.31781332,1946.5,1946.4,0.001]
[1771542583570,0.0011,1946.6,1946.4,0.001]
[1771542585956,1.31891332,1946.6,1946.4,0.001]
[1771542589560,2.6032092,1946.6,1946.4,0.001]
[1771542589761,1.31891332,1946.6,1946.4,0.001]
[1771542591975,1.31781332,1946.5,1946.4,0.001]
[1771542592147,0.0011,1946.6,1946.4,0.001]
[1771542592351,0.0011,1946.6,1946.4,1.30535633]
[1771542594781,0.0011,1946.6,1946.4,2.58976482]
[1771542594978,0.0011,1946.6,1946.4,1.30535633]
[1771542595845,1.31891332,1946.6,1946.4,0.001]
[1771542596187,1.31891332,1946.6,1946.1,1.30535633]
[1771542596478,1.31891332,1946.6,1946.1,0.001]
[1771542597479,1.31891332,1946.6,1946.1,1.30535633]
[1771542598287,2.60216985,1946.5,1946.1,1.30535633]
[1771542598581,1.31781332,1946.4,1946.1,1.30535633]
[1771542598748,1.31781332,1946.4,1945.7,2.19964336]
[1771542599363,2.61257896,1946.6,1945.8,1.27364336]
[1771542599565,1.32716658,1946.5,1945.8,1.27364336]
[1771542600174,1.32716658,1946.5,1945.9,1.28475255]
[1771542600369,1.32716658,1946.5,1946.0,1.27364336]
[1771542600575,0.0011,1946.6,1946.1,1.27364336]
[1771542601295,0.0011,1946.7,1946.4,1.27364336]
[1771542602477,0.0011,1946.7,1946.5,1.27364336]
[1771542603392,0.0011,1946.7,1946.3,1.27364336]
[1771542604997,0.0011,1946.7,1946.5,1.27364336]
[1771542606297,0.0011,1946.6,1946.5,1.27364336]
[1771542607292,0.0011,1946.6,1946.5,2.55799989]
[1771542608894,0.0011,1946.9,1946.6,1.28627406]
[1771542609980,0.0011,1946.9,1946.6,2.57056037]
[1771542610398,0.0011,1946.9,1946.7,1.28627406]
[1771542612798,0.0011,1946.9,1946.8,1.28415861]
[1771542612984,0.0011,1946.9,1946.8,2.57043267]
[1771542613183,0.0011,1946.9,1946.8,1.28627406]
[1771542615997,0.0011,1946.9,1946.8,2.57043267]
[1771542616205,0.0011,1947.2,1946.9,1.40681561]
[1771542619108,0.0011,1947.2,1947.0,2.69084231]
[1771542619401,0.00378007,1947.4,1947.1,1.40681561]
[1771542619402,0.0011,1947.4,1947.1,1.40681561]
[1771542619605,2.70935602,1947.9,1947.2,1.40948739]
[1771542619803,0.00131292,1947.9,1947.2,1.40948739]
[1771542621595,0.00131292,1947.9,1947.3,1.28382889]
[1771542621794,0.00131292,1947.9,1947.4,1.40948739]
[1771542624107,0.00131292,1947.9,1947.5,1.28369704]
[1771542624412,0.00131292,1947.9,1947.5,2.69318443]
[1771542626997,0.00131292,1947.9,1947.6,1.40948739]
[1771542630590,0.00131292,1947.9,1947.2,1.28389482]
[1771542630796,0.00131292,1947.9,1947.3,1.40948739]
[1771542631131,0.01482037,1947.7,1947.0,1.40948739]
[1771542631696,0.01482037,1947.7,1947.5,0.001]
[1771542632812,0.01596798,1947.6,1947.5,0.001]
[1771542633696,1.30072492,1947.7,1947.5,0.001]
[1771542634011,0.0182495,1947.6,1947.5,0.001]
[1771542634524,1.28361957,1947.7,1947.5,0.001]
[1771542634935,0.01935494,1947.7,1947.5,0.001]
[1771542637443,1.28363113,1947.6,1947.5,0.001]
[1771542637619,1.30623034,1947.6,1947.5,0.001]
[1771542640629,0.02259921,1947.6,1947.5,0.001]
[1771542640835,1.30623034,1947.6,1947.5,0.001]
[1771542641230,0.02259921,1947.6,1947.5,0.001]
[1771542643152,0.02988369,1947.8,1947.5,1.41048739]
[1771542644928,0.02988369,1947.8,1947.6,0.001]
[1771542645348,0.0011,1947.7,1947.6,0.001]
[1771542650070,0.03658623,1947.7,1947.6,0.001]
[1771542650471,0.03658623,1947.7,1947.4,0.001]
[1771542650746,0.03448623,1947.5,1947.4,0.001]
[1771542652278,0.03448623,1947.5,1947.3,0.001]
[1771542652681,0.03448623,1947.5,1946.8,1.40998739]
[1771542652682,0.03630392,1947.3,1946.8,1.40998739]
[1771542653178,1.32095501,1947.4,1946.8,1.40998739]
[1771542653881,1.28376296,1947.4,1946.8,1.40998739]
[1771542654453,1.28374822,1947.5,1946.8,1.40998739]
[1771542654983,0.03896489,1947.6,1947.0,1.40998739]
[1771542657986,1.28369704,1947.5,1947.1,0.001]
[1771542658280,1.28479704,1947.5,1947.2,1.40998739]
[1771542658660,0.0011,1947.5,1947.2,1.40998739]
[1771542659187,0.04342673,1947.5,1947.2,1.40998739]
[1771542659996,0.04342673,1947.5,1947.1,0.001]
[1771542659997,0.04314298,1947.3,1947.1,0.001]
[1771542660194,0.04314298,1947.3,1946.8,1.38909938]
[1771542660792,0.04314298,1947.3,1946.8,0.001]
[1771542661566,5.32669974,1947.0,1946.6,0.001]
[1771542661795,1.34301077,1946.9,1946.6,0.001]
[1771542661997,1.34301077,1946.7,1946.6,0.001]
[1771542662162,1.34301077,1946.7,1946.3,0.001]
[1771542662763,6.61085835,1946.8,1946.0,1.42320031]
[1771542662764,1.34301077,1946.3,1946.0,0.00153886]
[1771542662965,1.34301077,1946.3,1945.6,1.42266145]
[1771542663297,2.26801077,1946.5,1945.8,1.42166145]
[1771542665066,3.55240606,1946.5,1946.0,1.42166145]
[1771542665274,1.34301077,1946.4,1945.7,1.42166145]
[1771542665490,1.34301077,1946.3,1945.7,1.42166145]
[1771542665902,2.26801077,1946.5,1945.7,1.42166145]
[1771542666101,3.55237049,1946.5,1945.7,1.42166145]
[1771542666420,2.26801077,1946.5,1945.7,1.42166145]
[1771542666705,0.925,1946.5,1945.7,1.42166145]
[1771542667470,0.925,1946.5,1945.9,1.42772156]
[1771542667666,1.37329975,1947.0,1945.9,1.42772156]
[1771542667902,0.00153886,1947.0,1945.9,1.42772156]
[1771542668197,2.6573463,1947.0,1945.9,1.42772156]
[1771542668891,0.00153886,1947.0,1945.9,1.42772156]
[1771542669473,0.00153886,1947.0,1946.0,1.42772156]
[1771542669672,0.00153886,1947.0,1946.3,1.42772156]
[1771542670801,0.0011,1946.4,1946.3,1.42772156]
[1771542670975,0.00153886,1947.0,1946.3,1.42772156]
[1771542671369,0.0011,1946.5,1946.3,1.42772156]
[1771542671581,0.0011,1946.7,1946.4,1.28442252]
[1771542671786,0.00153886,1947.0,1946.7,1.42772156]
[1771542673180,1.37286089,1947.5,1946.5,1.42772156]
[1771542673391,0.0011,1947.5,1946.5,1.42772156]
[1771542673696,0.0011,1947.5,1946.6,1.28429055]
[1771542673873,0.0011,1947.5,1946.7,1.42772156]
[1771542674070,0.0011,1947.6,1946.8,1.42772156]
[1771542675105,0.0011,1947.6,1947.0,1.42772156]
[1771542675675,0.0011,1947.6,1947.1,1.28396076]
[1771542675881,0.0011,1947.6,1947.2,1.42772156]
[1771542677207,1.37286089,1947.6,1947.0,1.42772156]
[1771542677408,1.37286089,1947.6,1946.9,0.925]
[1771542677914,1.37176089,1947.4,1946.9,0.925]
[1771542678783,1.37176089,1947.4,1946.9,3.63680747]
[1771542680104,2.65554985,1947.4,1946.9,2.71180747]
[1771542680704,2.65554985,1947.4,1946.9,1.42772156]
[1771542681414,1.37176089,1947.3,1946.9,1.42772156]
[1771542681912,1.37176089,1947.3,1946.7,2.71190884]
[1771542682112,2.65560118,1947.3,1946.8,1.42772156]
[1771542682284,1.37176089,1947.3,1946.8,1.42772156]
[1771542683109,0.0011,1947.3,1946.8,1.42772156]
[1771542684186,0.0011,1947.3,1946.9,2.71181422]
[1771542684587,0.0011,1947.3,1947.0,1.42772156]
[1771542685710,0.0011,1947.3,1946.9,1.28409266]
[1771542685711,0.0011,1947.6,1947.2,1.42772156]
[1771542686410,0.0011,1947.6,1947.4,1.42772156]
[1771542688221,0.0011,1947.7,1947.4,1.42772156]
[1771542688222,0.0011,1947.8,1947.4,1.42772156]
[1771542689728,0.0011,1947.8,1947.5,2.7114186]
[1771542690334,1.37176089,1947.7,1947.2,1.42772156]
[1771542690737,1.37176089,1947.7,1947.0,1.42772156]
[1771542691042,1.37176089,1947.7,1946.9,3.6367636]
[1771542691412,1.37176089,1947.7,1946.9,2.35272156]
[1771542691820,1.37176089,1947.5,1946.9,2.35272156]
[1771542694031,1.37176089,1947.3,1946.9,2.35272156]
[1771542694209,1.37176089,1947.3,1946.9,3.63680989]
[1771542694535,1.37176089,1947.3,1946.9,2.7118126]
[1771542695634,1.37176089,1947.3,1946.9,2.7128126]
[1771542695942,1.37176089,1947.3,1946.9,2.71279987]
[1771542699740,1.33969309,1947.2,1946.9,0.001]
[1771542699953,1.33969309,1947.2,1946.8,0.001]
[1771542701065,1.28383287,1947.3,1946.4,0.925]
[1771542701066,1.33969309,1947.0,1946.4,0.925]
[1771542701351,1.33969309,1946.8,1946.0,2.60516267]
[1771542701520,1.33969309,1946.8,1946.1,1.31895321]
[1771542701849,1.28383287,1947.3,1946.3,1.31895321]
[1771542701850,2.6237533,1947.0,1946.3,1.31895321]
[1771542702050,2.26579309,1947.4,1946.4,1.31895321]
[1771542702432,0.9261,1947.4,1946.4,2.24395321]
[1771542702622,0.9261,1947.4,1946.5,1.31895321]
[1771542704051,0.9261,1947.4,1946.7,1.31895321]
[1771542704971,1.33737312,1947.3,1946.5,1.31895321]
[1771542705182,1.33737312,1947.3,1946.4,0.925]
[1771542705387,1.33737312,1947.1,1946.4,0.925]
[1771542705542,1.33737312,1946.9,1946.1,2.60352472]
[1771542706140,1.33653743,1946.7,1946.1,2.60352472]
[1771542708085,1.33653743,1946.7,1946.0,0.00153886]
[1771542708242,1.33489104,1946.5,1946.0,0.00153886]
[1771542710171,1.33489104,1946.5,1946.0,1.32049207]
[1771542710561,1.33489104,1946.5,1946.0,2.60515253]
[1771542710759,1.33328343,1946.9,1946.1,1.31895321]
[1771542711077,1.28407938,1947.0,1946.1,1.31895321]
[1771542711257,1.28407938,1947.0,1946.2,1.31895321]
[1771542711980,2.61650334,1947.1,1946.2,1.31895321]
[1771542712453,2.61645734,1947.1,1946.2,1.31895321]
[1771542712879,2.61645734,1947.1,1946.4,1.31895321]
[1771542715084,2.61645734,1947.1,1946.5,1.28435653]
[1771542716562,2.61645734,1947.1,1946.5,2.60330974]
[1771542717887,1.32793928,1947.0,1946.1,2.60353282]
[1771542718794,1.32720625,1946.8,1946.0,0.00153886]
[1771542719097,1.32720625,1946.8,1946.0,2.60516516]
[1771542721074,2.60930579,1946.7,1946.1,1.31895321]
[1771542722265,2.60930579,1946.7,1946.1,1.31995321]
[1771542722465,1.30919644,1946.6,1946.1,1.31995321]
[1771542723076,2.59354742,1946.6,1946.1,1.31995321]
[1771542725969,1.30919644,1946.5,1946.1,1.31995321]
[1771542727667,1.30919644,1946.5,1946.1,0.001]
[1771542728097,1.31909889,1946.3,1946.0,0.00253886]
[1771542731112,1.28455451,1946.2,1946.0,0.00253886]
[1771542731311,1.31628311,1946.3,1946.0,0.00253886]
[1771542732200,2.60077526,1946.3,1946.0,0.00253886]
[1771542734939,1.31208013,1946.6,1946.0,1.37525462]
[1771542735211,1.31208013,1946.6,1946.1,0.001]
[1771542737424,1.30972466,1946.4,1946.1,0.001]
[1771542739390,1.28429055,1946.6,1946.1,1.37371576]
[1771542739713,1.28537123,1946.7,1946.1,1.37371576]
[1771542740891,0.0011,1946.7,1946.1,1.37371576]
[1771542741521,0.0011,1946.7,1946.3,1.37271576]
[1771542742814,0.0011,1947.0,1946.4,1.37271576]
[1771542743744,0.0011,1947.0,1946.6,1.37271576]
[1771542745236,1.30190522,1947.0,1946.6,1.37271576]
[1771542745392,1.30190522,1947.0,1946.3,1.37271576]
[1771542745798,1.28409266,1946.9,1946.3,1.37271576]
[1771542745997,2.58383963,1946.9,1946.3,1.37271576]
[1771542746929,2.58383963,1946.9,1946.4,1.37271576]
[1771542747129,1.28409266,1946.9,1946.4,1.37271576]
[1771542747454,0.0011,1947.0,1946.4,1.37271576]
[1771542748236,0.0011,1947.0,1946.6,1.37271576]
[1771542749825,0.0011,1946.9,1946.6,1.37271576]
[1771542750346,0.0011,1946.9,1946.6,2.65699754]
[1771542750499,0.0011,1946.9,1946.7,1.37271576]
[1771542750812,0.0011,1946.9,1946.5,2.65702362]
[1771542751012,0.0011,1946.9,1946.5,1.37271576]
[1771542751209,0.0011,1946.9,1946.4,0.001]
[1771542751210,1.2968352,1946.9,1946.4,0.001]
[1771542751617,1.2957352,1946.7,1946.1,0.001]
[1771542752636,1.29476625,1946.5,1946.1,0.001]
[1771542754722,1.28442252,1946.4,1946.1,0.001]
[1771542754922,2.57630091,1946.4,1946.1,0.001]
[1771542755930,1.28442252,1946.4,1946.1,0.001]
[1771542756131,1.28442252,1946.4,1946.1,1.37371576]
[1771542757151,5.13769009,1946.5,1946.1,1.37371576]
[1771542759754,1.28727357,1946.5,1946.1,1.37371576]
[1771542759934,1.28727357,1946.5,1946.1,0.001]
[1771542760134,1.28727357,1946.5,1946.0,0.00253886]
[1771542760345,1.28727357,1946.5,1946.0,1.28721373]
[1771542760538,1.28638193,1946.7,1946.1,1.2786017]
[1771542760736,1.28638193,1946.5,1946.0,0.00253886]
[1771542761253,1.28638193,1946.5,1946.2,0.001]
[1771542762050,1.28464693,1946.3,1946.2,0.001]
[1771542762258,1.28464693,1946.3,1946.0,0.00253886]
[1771542764256,1.28455451,1946.2,1946.0,0.00253886]
[1771542764450,2.56750186,1946.2,1946.0,0.00253886]
[1771542765940,1.28294735,1946.2,1946.0,0.00253886]
[1771542766141,1.2855636,1946.4,1946.0,1.28114056]
[1771542769664,1.27994965,1946.4,1946.0,1.28114056]
[1771542770781,1.27994965,1946.4,1945.8,1e-08]
[1771542770990,1.38649489,1946.2,1945.7,0.001]
[1771542771767,1.38649489,1946.0,1945.7,0.001]
[1771542773668,2.67111541,1946.1,1945.7,1.2796017]
[1771542774437,1.38649489,1946.0,1945.7,0.001]
[1771542774842,1.38649489,1946.0,1945.8,0.001]
[1771542775044,1.28462052,1946.1,1945.8,1.2796017]
[1771542777083,1.38649489,1946.2,1945.8,1.2796017]
[1771542778484,1.38649489,1946.2,1945.8,0.001]
[1771542779401,2.6710494,1946.2,1945.8,1.2796017]
[1771542779561,2.67101646,1946.3,1945.8,1.2796017]
[1771542780293,1.38649489,1946.2,1945.8,1.2796017]
[1771542780457,1.38649489,1946.2,1945.8,0.001]
[1771542781873,2.66131931,1946.1,1945.8,0.001]
[1771542782759,1.37669879,1946.0,1945.8,0.001]
[1771542783184,1.28453836,1946.3,1945.8,1.36960543]
[1771542783486,1.28553828,1946.4,1945.8,1.36960543]
[1771542784389,1.37779879,1946.4,1945.9,1.36860543]
[1771542785058,0.0011,1946.4,1945.9,1.36860543]
[1771542785666,1.37779879,1946.4,1945.9,1.36860543]
[1771542787190,1.28558851,1946.3,1945.9,1.36860543]
[1771542787391,2.56413406,1946.3,1945.9,1.36860543]
[1771542789691,2.56413406,1946.3,1945.8,0.001]
[1771542789915,2.56413406,1946.3,1945.5,0.001]
[1771542789916,1.27854555,1946.0,1945.5,0.001]
[1771542790066,1.27854555,1946.0,1945.1,1.29803859]
[1771542790067,1.27854555,1945.8,1945.1,0.001]
[1771542790266,1.27854555,1945.8,1944.9,1.29703859]
[1771542790474,0.926,1945.9,1944.9,1.29703859]
[1771542791584,0.00153886,1946.0,1944.9,1.29703859]
[1771542791788,0.00153886,1946.0,1945.1,1.29703859]
[1771542791989,0.00153886,1946.0,1945.2,1.29703859]
[1771542795806,0.00153886,1946.0,1945.3,1.28514882]
[1771542796104,0.00153886,1946.0,1945.4,1.29703859]
[1771542796485,0.0011,1946.3,1945.4,1.29703859]
[1771542797988,0.0011,1946.3,1945.6,1.29703859]
[1771542799307,0.0011,1946.2,1945.6,1.29703859]
[1771542800899,0.0011,1946.2,1945.8,1.29703859]
[1771542801495,1.27964555,1946.2,1945.7,2.5819232]
[1771542802684,0.0011,1946.2,1945.8,1.29703859]
[1771542803300,0.0011,1946.3,1945.9,1.28475255]
[1771542803504,0.0011,1946.4,1946.0,1.29703859]
[1771542805414,0.0011,1946.4,1946.1,1.28462052]
[1771542805620,0.0011,1946.4,1946.1,2.58165911]
[1771542806202,0.0011,1946.4,1946.1,1.29703859]
[1771542806399,1.27964555,1946.4,1945.9,1.28471769]
[1771542806697,1.27964555,1946.4,1945.7,2.58190015]
[1771542806896,1.27964555,1946.4,1945.7,1.29703859]
[1771542807221,1.27964555,1946.4,1945.7,2.5819169]
[1771542807630,1.27854555,1946.2,1945.7,2.5819169]
[1771542807806,2.56303406,1946.3,1945.8,1.29703859]
[1771542808194,1.28448851,1946.3,1945.8,1.29703859]
[1771542808395,1.27854555,1946.2,1945.8,1.29703859]
[1771542811631,1.27854555,1946.2,1945.9,1.29703859]
[1771542811800,0.0011,1946.1,1945.9,1.29703859]
[1771542820307,1.38372308,1946.1,1945.8,1.30901889]
[1771542821227,1.38372308,1946.1,1945.8,0.001]
[1771542822232,1.38372308,1946.1,1945.5,0.001]
[1771542822233,1.38262308,1946.0,1945.5,0.001]
[1771542822438,1.38262308,1945.9,1945.3,0.927]
[1771542824235,1.38262308,1945.7,1945.3,0.927]
[1771542824612,1.38262308,1946.0,1945.9,0.001]
[1771542827207,0.0011,1946.1,1945.9,1.30901889]
[1771542829334,0.0011,1946.1,1946.0,1.30801889]
[1771542829543,0.0011,1946.5,1946.1,1.30801889]
[1771542835655,0.0011,1946.5,1946.3,1.30801889]
[1771542837450,0.0011,1946.4,1946.3,2.5925074]
[1771542840351,1.38372308,1946.4,1946.2,0.001]
[1771542840526,1.38372308,1946.4,1946.0,0.001]
[1771542842050,1.38372308,1946.4,1946.0,1.28568587]
[1771542842235,1.38372308,1946.4,1946.0,0.001]
[1771542846957,0.0011,1946.4,1946.1,1.27094477]
[1771542847859,0.0011,1946.4,1946.1,1.26994477]
[1771542848169,0.0001,1946.4,1946.2,1.26994477]
[1771542849442,0.0001,1946.4,1946.3,2.55443328]
[1771542852691,0.0011,1946.7,1946.4,1.26994477]
[1771542852962,0.00263886,1947.0,1946.4,1.26994477]
[1771542853459,0.00263886,1947.0,1946.6,1.26994477]
[1771542854269,0.00263886,1947.0,1946.8,1.26994477]
[1771542856761,0.00263886,1947.0,1946.8,2.55409502]
[1771542857944,0.00263886,1947.0,1946.9,1.26994477]
[1771542858766,0.00263886,1947.0,1946.9,2.55403743]
[1771542858966,0.0011,1947.3,1947.1,1.26994477]
[1771542859266,0.0011,1947.5,1947.1,1.26994477]
[1771542861466,0.0011,1947.5,1947.3,1.26994477]
[1771542863438,0.0011,1947.5,1947.4,1.28376296]
[1771542864073,1.36796307,1947.5,1947.2,6.40539157]
[1771542864640,0.0011,1947.5,1947.3,1.26994477]
[1771542866074,0.0011,1947.5,1947.4,2.55370773]
[1771542866374,0.0011,1947.5,1947.4,1.26994477]
[1771542866579,1.36796307,1947.7,1947.4,1.26994477]
[1771542866753,0.0011,1947.7,1947.4,1.26994477]
[1771542868055,1.36840193,1948.0,1947.5,1.26994477]
[1771542870498,1.36840193,1948.0,1947.5,2.55359036]
[1771542871458,1.36686307,1947.9,1947.2,1.28384307]
[1771542871681,1.36686307,1947.9,1947.1,2.55385689]
[1771542873881,1.36686307,1947.7,1947.4,0.001]
[1771542875887,1.36686307,1947.7,1947.4,1.28476296]
[1771542879064,2.65033716,1947.9,1947.4,2.58692729]
[1771542879466,1.36575315,1947.8,1947.4,2.58692729]
[1771542885907,1.36685315,1947.9,1947.5,1.30216433]
[1771542886080,1.07261448,1947.9,1947.5,1.30216433]
[1771542886873,0.00263886,1948.0,1947.6,1.30216433]
[1771542887906,0.00263886,1948.0,1947.8,1.30216433]
[1771542888214,0.0011,1948.2,1947.9,1.30216433]
[1771542888710,1.07768124,1948.2,1947.7,2.58572956]
[1771542889315,1.07768124,1948.2,1947.8,1.30216433]
[1771542890312,1.07768124,1948.2,1947.8,2.58563186]
[1771542893216,1.07768124,1948.2,1947.8,1.28346753]
[1771542893515,1.08608862,1948.1,1947.5,2.58685852]
[1771542896115,1.09149285,1947.9,1947.5,0.001]
[1771542898810,1.09501639,1947.7,1947.3,0.001]
[1771542900629,1.09501639,1947.7,1947.6,0.001]
[1771542900925,2.37858162,1947.7,1947.6,0.001]
[1771542903226,1.09501639,1947.7,1947.6,0.001]
[1771542903591,2.37858162,1947.7,1947.6,0.001]
[1771542903838,1.10405219,1948.0,1947.6,1.36658245]
[1771542904197,0.0011,1948.1,1947.6,1.36658245]
[1771542904534,1.10675521,1948.1,1947.6,1.36658245]
[1771542904706,0.0011,1948.1,1947.6,1.36658245]
[1771542907641,0.0011,1948.1,1947.8,1.28542489]
[1771542908533,1.11453214,1948.1,1947.8,1.28542489]
[1771542908833,1.11453214,1948.1,1947.7,1.28356523]
[1771542909019,1.11453214,1948.1,1947.7,2.56899012]
[1771542910631,0.0011,1948.1,1947.8,1.28542489]
[1771542911928,0.0011,1948.1,1947.9,1.28542489]
[1771542913139,0.0011,1948.0,1947.9,1.28542489]
[1771542914746,0.0011,1948.2,1948.0,1.28542489]
[1771542920052,0.0011,1948.2,1948.0,2.56874204]
[1771542920551,0.0011,1948.2,1948.0,1.28331715]
[1771542920765,0.0011,1948.2,1948.1,1.28542489]
[1771542922162,0.0011,1948.2,1948.1,2.56872656]
[1771542923219,0.0011,1948.2,1948.1,1.28542489]
[1771542924268,0.0011,1948.2,1947.9,1.28542489]
[1771542925768,0.0011,1948.1,1947.9,1.28542489]
[1771542926062,0.0011,1948.1,1948.0,1.28642489]
[1771542926363,0.0011,1948.1,1948.0,2.56979244]
[1771542930979,0.0011,1948.4,1948.1,1.28542489]
[1771542933079,0.0011,1948.4,1948.3,1.28542489]
[1771542933759,1.10792731,1948.8,1948.4,1.28542489]
[1771542933978,0.00153886,1949.0,1948.4,1.28542489]
[1771542934477,0.00153886,1949.0,1948.5,5.31996082]
[1771542934674,0.00153886,1949.0,1948.6,1.28542489]
[1771542935254,0.00153886,1949.0,1948.7,2.56833144]
[1771542935496,0.00153886,1949.0,1948.8,1.28542489]
[1771542937699,0.00153886,1949.0,1948.8,2.56824642]
[1771542938178,0.0011,1948.9,1948.8,2.56824642]
[1771542940852,1.10453957,1948.9,1948.5,1.38367205]
[1771542941366,1.10453957,1948.9,1948.5,2.66670555]
[1771542941559,1.10453957,1948.9,1948.6,1.38367205]
[1771542941758,1.10453957,1948.9,1948.5,1.38367205]
[1771542942889,1.10453957,1948.9,1948.5,2.66667195]
[1771542943462,1.10251397,1948.8,1948.3,2.66679072]
[1771542943789,1.10251397,1948.8,1948.3,2.66683529]
[1771542944288,1.10251397,1948.8,1948.4,1.38367205]
[1771542945392,0.0011,1948.9,1948.5,1.38367205]
[1771542945594,1.10270769,1948.9,1948.5,1.38367205]
[1771542947196,1.10270769,1948.9,1948.4,2.66675117]
[1771542947359,1.10270769,1948.9,1948.5,1.38367205]
[1771542948104,1.10270769,1948.9,1948.5,2.66670968]
[1771542948399,1.10270769,1948.9,1948.5,1.28303763]
[1771542948689,1.10029185,1948.8,1948.4,2.66672977]
[1771542948892,1.10029185,1948.8,1948.4,1.38367205]
[1771542950614,1.09943804,1948.7,1948.4,1.38367205]
[1771542950763,1.09943804,1948.7,1948.5,0.001]
[1771542952267,1.09859811,1948.8,1948.5,1.38467205]
[1771542952802,0.0011,1948.9,1948.5,6.70463287]
[1771542953001,0.0011,1948.9,1948.6,1.38367205]
[1771542953506,0.0011,1949.2,1948.6,1.38367205]
[1771542954067,1.06332004,1949.3,1948.9,1.38367205]
[1771542954271,10.44991505,1950.0,1949.3,1.38367205]
[1771542954272,1.06290588,1949.7,1949.3,1.38367205]
[1771542954973,1.06251827,1949.6,1949.3,1.38367205]
[1771542955210,1.06251827,1949.6,1948.9,1.38367205]